{"text_format":"1","workbook":"xlsx","n_sheets":5,"sheets":["1 Försättssida","2 Specifikation","3 Avtalstecknande","Admin","SysAdmin"],"not_rendered":{"charts":0,"images":0,"macros":1,"external_links":1,"defined_names":69,"comments":0,"pivot_tables":0},"unopened":[],"bounds":{"document_bytes":16777216,"sheet_cells":100000,"rows_first":2000,"rows_last":500,"rows_between":2000,"halvings":0,"cell_chars":16384,"cell_head_chars":4096},"cells_cut":0,"cells_raw":0,"read":"whole","date_system":"1900"}

{"sheet":"1 Försättssida","index":0,"n_rows":24,"n_cols":1,"rows_kept":24,"cut":false,"hidden":false,"merged":[]}
[]
[]
[]
[]
[]
[]
[]
[]
[]
[]
[]
["Avropsförfrågan - Förnyad konkurrensutsättning "]
["från Statens inköpscentrals ramavtal inom området "]
["Resebyråtjänster"]
[]
["96-86-2014"]
[]
[]
[]
[]
["Avropsblankett"]
[]
[{"$f":"MID(CELL(\"filename\",A1),FIND(\"[\",CELL(\"filename\",A1))+1,FIND(\"]\",CELL(\"filename\",A1))-FIND(\"[\",CELL(\"filename\",A1))-1)","v":"Enkelt avrop Resebyråtjänster.xlsm"}]
[{"$f":"MID(A23,SEARCH(\"(\",A23)+1,SEARCH(\")\",A23)-SEARCH(\"(\",A23)-1)","v":{"$error":"#VALUE!"}}]

{"sheet":"2 Specifikation","index":1,"n_rows":198,"n_cols":34,"rows_kept":198,"cut":false,"hidden":false,"merged":[[102,16,102,23],[97,16,97,23],[44,2,44,4],[96,3,96,9],[73,3,73,11],[73,16,73,20],[73,21,73,22],[50,5,50,11],[47,2,47,4],[50,2,50,4],[97,3,97,9],[98,3,98,9],[50,23,50,24],[49,23,49,24],[50,15,50,18],[51,15,51,18],[52,15,52,18],[53,15,53,18],[54,15,54,18],[55,15,55,18],[73,23,73,24],[76,23,76,24],[78,23,78,24],[74,21,74,22],[40,23,40,24],[41,23,41,24],[42,23,42,24],[43,23,43,24],[44,23,44,24],[45,23,45,24],[46,23,46,24],[47,23,47,24],[37,15,37,18],[40,15,40,18],[41,15,41,18],[42,15,42,18],[43,15,43,18],[44,15,44,18],[45,15,45,18],[46,15,46,18],[47,15,47,18],[37,23,37,24],[38,15,38,18],[38,23,38,24],[39,15,39,18],[39,23,39,24],[104,12,104,13],[104,3,104,9],[105,3,105,9],[106,3,106,9],[52,5,52,11],[53,5,53,11],[54,5,54,11],[55,5,55,11],[56,5,56,11],[57,5,57,11],[58,5,58,11],[87,4,87,8],[93,10,95,10],[99,3,99,9],[100,3,100,9],[101,3,101,9],[102,3,102,9],[82,1,82,9],[100,12,100,13],[74,3,74,11],[96,12,96,13],[71,3,71,12],[63,3,63,12],[109,21,109,22],[104,16,104,23],[106,12,106,13],[106,16,106,23],[103,12,103,13],[189,1,189,8],[104,1,104,2],[109,1,109,2],[105,1,105,2],[162,1,162,8],[184,1,184,8],[146,1,146,8],[147,1,147,8],[182,1,182,8],[183,1,183,8],[106,1,106,2],[163,1,163,8],[152,1,152,8],[153,1,153,8],[156,1,156,8],[169,1,178,8],[181,1,181,8],[164,1,164,8],[165,1,165,8],[71,16,71,20],[74,16,74,20],[78,1,78,5],[60,23,60,24],[63,21,63,22],[63,23,63,24],[101,1,101,2],[97,1,97,2],[87,1,87,3],[83,1,83,3],[84,1,84,8],[96,16,96,23],[95,1,95,2],[93,11,94,13],[94,1,94,5],[97,12,97,13],[98,12,98,13],[101,12,101,13],[74,23,74,24],[100,16,100,23],[101,16,101,23],[64,16,64,20],[63,16,63,20],[66,23,66,24],[67,23,67,24],[68,23,68,24],[69,23,69,24],[70,23,70,24],[66,3,66,12],[67,3,67,12],[68,3,68,12],[69,3,69,12],[70,3,70,12],[69,16,69,20],[70,16,70,20],[67,16,67,20],[68,16,68,20],[66,16,66,20],[11,7,11,8],[16,1,16,3],[12,1,12,3],[13,1,13,3],[36,23,36,24],[15,4,15,8],[15,18,15,22],[26,1,26,2],[19,15,19,22],[23,6,23,8],[29,1,29,2],[28,1,28,2],[34,15,34,16],[33,12,34,13],[22,6,22,8],[29,6,29,7],[14,15,14,17],[25,1,25,2],[35,1,35,5],[29,3,29,4],[26,3,26,4],[25,3,25,4],[28,3,28,4],[12,21,12,22],[8,21,8,22],[9,1,9,3],[9,4,9,6],[16,4,16,8],[16,18,16,22],[16,15,16,17],[23,3,23,4],[12,19,12,20],[10,15,10,18],[10,19,10,22],[9,7,9,8],[9,15,9,18],[9,19,9,22],[8,15,8,20],[11,15,11,18],[23,1,23,2],[10,1,10,3],[11,1,11,3],[14,18,14,20],[15,15,15,17],[10,7,10,8],[13,4,13,6],[12,7,12,8],[11,4,11,6],[8,1,8,6],[8,7,8,8],[22,1,22,2],[10,4,10,6],[2,1,2,4],[2,15,2,17],[2,19,2,22],[3,1,4,8],[3,15,4,22],[7,1,7,6],[7,7,7,8],[7,15,7,20],[7,21,7,22],[5,1,5,8],[6,1,6,8],[11,19,11,20],[11,21,11,22],[13,7,13,8],[13,15,13,17],[13,18,13,20],[12,15,12,18],[14,7,14,8],[14,4,14,6],[22,3,22,4],[197,19,197,22],[194,15,195,22],[191,15,191,22],[190,15,190,22],[193,15,193,22],[189,15,189,22],[31,1,31,8],[156,15,156,18],[121,20,121,21],[132,18,132,19],[139,20,139,21],[136,17,137,19],[133,20,133,21],[119,20,119,21],[138,18,138,19],[120,20,120,21],[35,15,35,19],[49,2,49,4],[36,2,36,4],[37,2,37,4],[34,1,34,5],[32,1,32,8],[36,5,36,11],[157,1,157,8],[37,5,37,11],[40,5,40,11],[41,5,41,11],[42,5,42,11],[43,5,43,11],[44,5,44,11],[43,2,43,4],[65,3,65,12],[53,2,53,4],[52,2,52,4],[55,2,55,4],[51,5,51,11],[56,2,56,4],[49,5,49,11],[38,2,38,4],[38,5,38,11],[39,2,39,4],[39,5,39,11],[48,2,48,4],[48,5,48,11],[46,2,46,4],[65,16,65,20],[56,23,56,24],[65,21,65,22],[51,23,51,24],[52,23,52,24],[53,23,53,24],[45,2,45,4],[42,2,42,4],[51,2,51,4],[57,2,57,4],[58,2,58,4],[48,15,48,18],[48,23,48,24],[45,5,45,11],[46,5,46,11],[47,5,47,11],[54,2,54,4],[54,23,54,24],[57,23,57,24],[58,23,58,24],[55,23,55,24],[49,15,49,18],[56,15,56,18],[57,15,57,18],[58,15,58,18],[103,16,103,23],[13,21,13,22],[14,21,14,22],[19,1,19,8],[15,1,15,3],[14,1,14,3],[12,4,12,6],[36,15,36,18],[40,2,40,4],[41,2,41,4],[71,21,71,22],[71,23,71,24],[62,21,62,22],[64,21,64,22],[28,6,28,7],[66,21,66,22],[67,21,67,22],[68,21,68,22],[64,3,64,12],[69,21,69,22],[70,21,70,22],[64,23,64,24],[65,23,65,24],[134,18,134,19],[134,20,134,21],[127,25,127,27],[168,1,168,8],[96,1,96,2],[79,20,79,22],[89,1,89,9],[82,11,86,13],[89,11,92,13],[91,1,91,3],[98,1,98,2],[99,1,99,2],[100,1,100,2],[116,16,117,16],[117,11,117,12],[116,20,117,21],[118,22,120,23],[109,12,109,13],[103,3,103,9],[119,1,119,3],[110,12,110,13],[103,1,103,2],[102,1,102,2],[102,12,102,13],[116,18,117,19],[118,18,118,19],[119,18,119,19],[120,18,120,19],[105,12,105,13],[105,16,105,23],[118,20,118,21],[146,23,186,27],[116,22,117,23],[113,18,115,23],[113,17,115,17],[113,15,115,16],[109,17,109,18],[108,12,108,13],[162,15,162,18],[181,15,181,22],[182,15,182,22],[183,15,183,22],[135,20,135,21],[126,17,127,18],[121,18,121,19],[138,20,138,21],[133,1,139,13],[144,15,144,18],[191,1,193,8],[85,1,85,9],[92,1,92,9],[159,1,159,8],[118,11,118,12],[98,16,98,23],[99,12,99,13],[99,16,99,23],[187,15,188,22],[184,15,184,22],[124,15,124,16],[124,17,124,18],[125,1,127,13],[150,1,150,8],[150,15,150,18],[132,1,132,13],[135,18,135,19],[132,20,132,21],[142,1,142,5],[158,1,158,8],[151,1,151,8],[145,1,145,8],[144,1,144,8],[116,17,117,17]]}
[]
[null,null,null,null,null,null,null,null,null,null,null,null,null,null,{"$f":"\"Avrop nr: \"&E15","v":"Avrop nr: xxxx"},null,null,null,null,null,null,null,{"$f":"\"Avrop nr: \"&M15","v":"Avrop nr: "},null,null,null,null,null,{"$f":"\"Avrop nr: \"&E15","v":"Avrop nr: xxxx"}]
[null,"Avropsförfrågan",null,null,null,null,null,null,null,null,null,null,null,null,null,"Avropssvar",null,null,null,{"$f":"IF(LarmStatus,\"Minst ett av de obligatoriska kraven är inte ifyllda eller besvarde med Nej\",\"\")","v":"Minst ett av de obligatoriska kraven är inte ifyllda eller besvarde med Nej"},null,null,null,null,null,null,null,null,null,null,null,null,null,{"$f":"OR(AH4:AH843)","v":true}]
[null,"Instruktion till avropande organisation: \nSpara ned blanketten på din dator.\nGulmarkerade rutor fylls i av avropare innan blanketten skickas.\n\nBlanketten skickas med e-post till antagna leverantörer inom aktuellt avropsområde.\nSe vidare \"Vägledning vid avrop\".",null,null,null,null,null,null,null,null,null,null,null,null,null,"Instruktion till leverantör:\nBlåmarkerade rutor fylls i av leverantören.\nLäs och kontrollera obligatoriska krav.\nReturnera blanketten med e-post till avropande organisation (oavsett Ja eller Nej)."]
[]
[null,"Steg 1 - Administrativa uppgifter"]
[null,"Uppgifter om avropande organisation",null,null,null,null,null,null,null,null,null,null,null,null,null,"Uppgifter om Ramavtalsleverantören"]
[null,"Myndighet/Organisation (namn)",null,null,null,null,null,"Organisationsnummer",null,null,null,null,null,null,null,"Ramavtalsleverantörens namn",null,null,null,null,null,"Organisationsnummer"]
[null,"Fiktivmyndigheten"]
[null,"Postadress",null,null,"Postnummer",null,null,"Ort",null,null,null,null,null,null,null,"Kontaktperson",null,null,null,"E-Post"]
[null,"Stora gatan 1",null,null,"123 45",null,null,"Staden"]
[null,"Avdelning, enhet etc",null,null,"Fakturaref.",null,null,"Mottagare för E-faktura",null,null,null,null,null,null,null,"Postadress",null,null,null,"Postnummer",null,"Ort"]
[]
[null,"Kontaktperson",null,null,"Referens/diarienr för avropet",null,null,"Ev. kundnummer",null,null,null,null,null,null,null,"Telefon",null,null,"Ramavtalsnummer",null,null,"Offertnummer el likn för detta avropssvar"]
[null,"Lisa Svensson",null,null,"xxxx",null,null,null,null,null,null,null,null,null,null,null,null,null,"96-86-2014"]
[null,"Telefon",null,null,"Avropssvar skickas till e-post",null,null,null,null,null,null,null,null,null,null,"Avropssvar lämnas Ja/Nej",null,null,"Om Nej, motivering\n(Information ska även skickas till statens inköpscentral)"]
[null,null,null,null,"avrop@fiktivmyndigheten.se",null,null,null,null,null,null,null,null,null,null,null,null,null,null,null,null,null,null,null,null,null,null,null,null,null,null,null,null,{"$f":"IF(AND(P17=0,P17<>\"Ja\"),TRUE,FALSE)","v":true}]
[]
[null,"Information om avropet t ex syfte och omfattning",null,null,null,null,null,null,null,null,null,null,null,null,null,"Uppgifter om underleverantör/återförsäljare som används för utförande av resebyråtjänster (om aktuellt)."]
[null,"Fiktivmyndigheten har 100 anställda och 30 medarbetare reser i tjänsten både inrikes och utrikes. Resebyråuppdraget avser såväl individuella resor som gruppresor, bokning av transportmedel, hotell och hyrbil. Myndigheten arbetar för att öka medarbetarnas användning av självbokningssystem. Fiktivmyndighetens resepolicy ska följas och Kammarkollegiets upphandlade ramavtal inom områdena resor och boende ska användas.                                                                                            Hänvisar för övrigt till upphandlade tjänster, krav och villkor i ramavtalet för Resebyråtjänster. "]
[]
[null,null,"Obs att tidsfristen måste vara skälig med hänsyn till avropets karaktär."]
[null,"Sista datum för frågor",null,"Sista datum för \nsvar på frågor",null,null,"E-post för frågor (om annan än ovan)"]
[null,"2018-04-02",null,"2018-04-04"]
[]
[null,"Sista dag för avropssvar",null,"Avropssvarets giltighetstid"]
[null,"2018-04-06",null,"2018-10-30"]
[]
[null,"Kontraktets längd: antal månader",null,"Förlägningsoption:\nAntal månader",null,null,"Planerat startdatum för kontraktet"]
[null,24,null,24,null,null,"2018-08-01"]
[]
[null,"Ange vilket delområde avropet avser "]
[null,"Delområde 1"]
[]
[null,"Steg 2 - Specifikation av tjänster",null,null,null,null,null,null,null,null,null,null,null,null,null,"Leverantörens svar"]
[]
[null,"Tjänst nr","Tjänster\n",null,null,"Övrig information som kan vara relelevant för avropet (om sådan finns). Till exempel hänvisning till bilaga, ange bilagenumret i så fall.\nFörväntat antal transaktioner matas in till höger (ej i bilaga).",null,null,null,null,null,null,"Personlig service (Antal transaktioner)","Självbokning (Antal transaktioner)",null,"Övrig information till avropande myndighet som kan vara relelevant för avropet (om sådan finns). Till exempel hänvisning till bilaga, ange bilagenumret i så fall.\nArvodet/per transaktion matas in till höger (ej i bilaga).",null,null,null,"Personlig service (Bokningsarvode)","Totalt personlig service","Självbokning (Bokningsarvode)","Självbokning (Totalt självbokning)","Pris totalt"]
[null,1,"Flyg - Inrikes",null,null,null,null,null,null,null,null,null,100,50,null,null,null,null,null,null,{"$f":"M38*T38","v":0},null,{"$f":"N38*V38","v":0},{"$f":"U38+W38","v":0},null,null,null,null,false]
[null,2,"Flyg - Norden",null,null,null,null,null,null,null,null,null,20,10,null,null,null,null,null,null,{"$f":"M39*T39","v":0},null,{"$f":"N39*V39","v":0},{"$f":"U39+W39","v":0}]
[null,3,"Flyg - Europa",null,null,null,null,null,null,null,null,null,10,2,null,null,null,null,null,null,0,null,0,0]
[null,4,"Flyg - Interkontinentalt",null,null,null,null,null,null,null,null,null,5,2,null,null,null,null,null,null,{"$f":"M41*T41","v":0},null,{"$f":"N41*V41","v":0},{"$f":"U41+W41","v":0}]
[null,5,"Flyg - Årskort/Travelpass/Dest.kort - utfärdande",null,null,null,null,null,null,null,null,null,null,null,null,null,null,null,null,null,0,null,null,0]
[null,6,"Flyg - Årskort/Travelpass/Dest.kort - utfärdande inkl bokning",null,null,null,null,null,null,null,null,null,null,null,null,null,null,null,null,null,0,null,null,0]
[null,7,"Tåg - Inrikes",null,null,null,null,null,null,null,null,null,50,20,null,null,null,null,null,null,0,null,{"$f":"N44*V44","v":0},0]
[null,8,"Tåg - Utrikes",null,null,null,null,null,null,null,null,null,null,null,null,null,null,null,null,null,0,null,0,0]
[null,9,"Tåg - Årskort/Dest.kort - utfärdande",null,null,null,null,null,null,null,null,null,null,null,null,null,null,null,null,null,0,null,null,0]
[null,10,"Tåg - Årskort/Dest.kort - utfärdande inkl bokning",null,null,null,null,null,null,null,null,null,null,null,null,null,null,null,null,null,0,null,null,0]
[null,11,"Hotell \nbokat i ordinarie bokningssystem ",null,null,null,null,null,null,null,null,null,200,30,null,null,null,null,null,null,0,null,0,{"$f":"U48+W48","v":0}]
[null,12,"Hotell \nbokat utanför ordinarie bokningssystem\n",null,null,null,null,null,null,null,null,null,25,null,null,null,null,null,null,null,{"$f":"M49*T49","v":0},null,{"$f":"N49*V49","v":0},{"$f":"U49+W49","v":0}]
[null,13,"E-vouchers",null,null,null,null,null,null,null,null,null,100,null,null,null,null,null,null,null,{"$f":"M50*T50","v":0},null,{"$f":"N50*V50","v":0},{"$f":"U50+W50","v":0}]
[null,14,"Hyrbil",null,null,null,null,null,null,null,null,null,30,null,null,null,null,null,null,null,0,null,0,0]
[null,15,"Anslutning till/från tåg/flyg",null,null,null,null,null,null,null,null,null,220,null,null,null,null,null,null,null,{"$f":"M52*T52","v":0},null,{"$f":"N52*V52","v":0},{"$f":"U52+W52","v":0}]
[null,16,"Båt",null,null,null,null,null,null,null,null,null,null,null,null,null,null,null,null,null,0,null,null,0]
[null,17,"Buss",null,null,null,null,null,null,null,null,null,null,null,null,null,null,null,null,null,0,null,null,0]
[null,18,"24-timmarsservice",null,null,null,null,null,null,null,null,null,50,null,null,null,null,null,null,null,0,null,null,0]
[null,19,"Visum",null,null,null,null,null,null,null,null,null,null,null,null,null,null,null,null,null,0,null,null,0]
[null,20,"Ombokning",null,null,null,null,null,null,null,null,null,40,null,null,null,null,null,null,null,0,null,0,0]
[null,21,"Omskrivning",null,null,null,null,null,null,null,null,null,10,null,null,null,null,null,null,null,0,null,null,0]
[null,22,"Kreditering",null,null,null,null,null,null,null,null,null,15,null,null,null,null,null,null,null,0,null,0,0]
[]
[null,null,null,null,null,null,null,null,null,null,null,null,null,null,null,null,null,null,null,null,null,null,"Totalt pris för avropade produkter: ",{"$f":"SUM(X38:Y59)","v":0}]
[]
[null,"Tilläggstjänster, nedan följer förslag på vanliga tilläggstjänster, övriga tilläggstjänster kan specificeras på pos 29-30 nedan.",null,null,null,null,null,null,null,null,null,null,null,"Antal",null,null,null,null,null,null,null,"Kostnad per enhet",null,"Totalsumma"]
[null,23,"Tillägg 1.","Implementering av självbokningssystem, fast pris (ange 1 som antal om tjänsten ingår i avropet)",null,null,null,null,null,null,null,null,null,1,null,"Total kostnad för implementering",null,null,null,null,null,null,null,{"$f":"V64*N64","v":0}]
[null,24,"Tillägg 2.","Årlig underhåll för självbokning (ange 1 som antal om tjänsten ingår i avropet)",null,null,null,null,null,null,null,null,null,1,null,"Total årlig kostnad för underhåll",null,null,null,null,null,null,null,{"$f":"V65*N65","v":0}]
[null,25,"Tillägg 3.","Upplägg av profiler (totalt förväntat antal profiler).",null,null,null,null,null,null,null,null,null,30,null,"Arvode anges/profil",null,null,null,null,null,null,null,0]
[null,26,"Tillägg 4.","Statistikrapporter (antal rapporter /år)",null,null,null,null,null,null,null,null,null,2,null,"Arvode/rapport",null,null,null,null,null,null,null,0]
[null,27,"Tillägg 5.","Informationsmöten",null,null,null,null,null,null,null,null,null,1,null,"Arvode/möte",null,null,null,null,null,null,null,0]
[null,28,"Tillägg 6.","Implementering av övriga system/projektledning (ange 1 som antal om tjänsten ingår i avropet)",null,null,null,null,null,null,null,null,null,null,null,"Total kostnad för implementering och projektledning",null,null,null,null,null,null,null,0]
[null,29,"Tillägg 7.","Avstämningsmöten/kundansvarig",null,null,null,null,null,null,null,null,null,1,null,"Arvode/möte",null,null,null,null,null,null,null,0]
[null,30,"Tillägg 8.","Stöd inom Travel Management och/eller resesamordning (ange förväntat antal timmar)",null,null,null,null,null,null,null,null,null,null,null,"Arvode/timme",null,null,null,null,null,null,null,0]
[null,31,"Tillägg 9.","Utbildning per timme (självbokning)",null,null,null,null,null,null,null,null,null,null,null,"Arvode/timme",null,null,null,null,null,null,null,0]
[null,32,null,null,null,null,null,null,null,null,null,null,"Antal","Enhet"]
[null,33,"Tillägg 10.",null,null,null,null,null,null,null,null,null,null,"välj enhet….",null,"Arvode per vald enhet för den specificerade tjänsten",null,null,null,null,null,null,null,{"$f":"V74*M74","v":0}]
[null,34,"Tillägg 11.",null,null,null,null,null,null,null,null,null,null,"välj enhet….",null,"Arvode per vald enhet för den specificerade tjänsten",null,null,null,null,null,null,null,{"$f":"V75*M75","v":0}]
[]
[null,null,null,null,null,null,null,null,null,null,null,null,null,null,null,null,null,null,null,null,null,null,"Totalt pris för tilläggstjänster: ",{"$f":"SUM(X64:Y75)","v":0}]
[]
[null,null,null,null,null,null,null,null,null,null,null,null,null,null,null,null,null,null,null,null,null,null,"Totalt pris (utvärderas): ",{"$f":"X61+X77","v":0}]
[]
[null,"Steg 3 - Grund för tilldelning av kontrakt",null,null,null,null,null,null,null,null,null,null,null,null,null,null,null,null,null,null,null,"OBS! Ej detsamma som kontraktssumma"]
[]
[null,"Ange tilldelningsgrund som kommer att tillämpas för att utse vinnande avropssvar.\nObs! Om kravspecifikationen innehåller bör-krav väljer Ni alternativ 2 nedan.",null,null,null,null,null,null,null,null,null,"Instruktion:\nInnan kravspecifikationen fylls i måste du ange tilldelningsgrund, dvs. om tilldelning ska ske genom lägsta pris (endast ska-krav) eller med bör-krav som viktas mot priset i utvärderingen. Kravspecifikationen nedan kommer att anpassas efter ditt val."]
[]
[null,"Tilldelning av kontrakt sker utifrån:"]
[null,"Alt. 1. Lägsta pris (endast ska-krav och pris)"]
[1]
[1,"Utvärderingsmodell"]
[1]
[1,"Ange den utvärderingsmodell som kommer att tillämpas för att utse vinnande avropssvar. \n",null,null,null,null,null,null,null,null,null,"Instruktion:\nObservera att de två föreslagna alternativen endast är exempel på vanligt förekommande utvärderings-modeller. Det är alltid den avropande organisationen som avgör om man vill använda sig av dem. "]
[1]
[1,"Utvärdering av :"]
[1,"Välj utvärdering….."]
[]
[null,"Steg 4 - Kravspecifikation",null,null,null,null,null,null,null,null,null,null,null,null,null,"Kravuppfyllnad"]
[]
[null,"Välj kravkategori\n(se kravspecifikation till ramavtal)\nOBS! varje krav kan väljas flera gånger",null,"Precisera krav i fritext eller hänvisa till bilaga\n(se exempel i ramavtalets kravkatalog)\nOBS! varje krav kan väljas flera gånger",null,null,null,null,null,null,{"$f":"IF(ISNUMBER(SEARCH(\"1\",B86)),\"Endast ska-krav\",\"Välj typ av krav\n(ska/bör)\")","v":"Endast ska-krav"},{"$f":"IF(TillDelVal=1,\"\",\"Ange poäng-värde\n(vid bör-krav)\")","v":""},{"$f":"IF(TillDelVal=1,\"\",IF(UtvarderingsVal=\"Ut3\",\"\",\"Ange prisavdrag \n(vid bör-krav)\"))","v":""},null,null,"Uppfyller kravet?","Beskrivning av hur leverantören uppfyller kravet eller referera till bilaga"]
[null,"Information/kommunikation",null,"Spårningstjänst för att lokalisera resenär i realtid.",null,null,null,null,null,null,"Välj typ av krav",null,null,null,null,null,null,null,null,null,null,null,null,null,null,null,{"$f":"IF(AND(K98=\"Bör-krav\",L98<=0),TRUE,FALSE)","v":false},{"$f":"IF(K98=\"Ska-krav\",TRUE,FALSE)","v":false},null,null,null,null,null,{"$f":"IF(AND(K98=\"Ska-krav\",P98<>\"Ja\"),TRUE,FALSE)","v":false}]
[null,"Välj krav",null,null,null,null,null,null,null,null,"Välj typ av krav",null,null,null,null,null,null,null,null,null,null,null,null,null,null,null,{"$f":"IF(AND(K99=\"Bör-krav\",M99<=0),TRUE,FALSE)","v":false},{"$f":"IF(K99=\"Ska-krav\",TRUE,FALSE)","v":false},null,null,null,null,null,{"$f":"IF(AND(K99=\"Ska-krav\",P99<>\"Ja\"),TRUE,FALSE)","v":false}]
[null,"Välj krav",null,null,null,null,null,null,null,null,"Välj typ av krav",null,null,null,null,null,null,null,null,null,null,null,null,null,null,null,{"$f":"IF(AND(K100=\"Bör-krav\",M100<=0),TRUE,FALSE)","v":false},{"$f":"IF(K100=\"Ska-krav\",TRUE,FALSE)","v":false},null,null,null,null,null,false]
[null,"Välj krav",null,null,null,null,null,null,null,null,"Välj typ av krav",null,null,null,null,null,null,null,null,null,null,null,null,null,null,null,false,false,null,null,null,null,null,false]
[null,"Välj krav",null,null,null,null,null,null,null,null,"Välj typ av krav",null,null,null,null,null,null,null,null,null,null,null,null,null,null,null,false,false,null,null,null,null,null,false]
[null,"Välj krav",null,null,null,null,null,null,null,null,"Välj typ av krav",null,null,null,null,null,null,null,null,null,null,null,null,null,null,null,false,false,null,null,null,null,null,{"$f":"IF(AND(K103=\"Ska-krav\",P103<>\"Ja\"),TRUE,FALSE)","v":false}]
[null,"Välj krav",null,null,null,null,null,null,null,null,"Välj typ av krav",null,null,null,null,null,null,null,null,null,null,null,null,null,null,null,false,false,null,null,null,null,null,{"$f":"IF(AND(K104=\"Ska-krav\",P104<>\"Ja\"),TRUE,FALSE)","v":false}]
[null,"Välj krav",null,null,null,null,null,null,null,null,"Välj typ av krav",null,null,null,null,null,null,null,null,null,null,null,null,null,null,null,false,false,null,null,null,null,null,false]
[null,"Välj krav",null,null,null,null,null,null,null,null,"Välj typ av krav",null,null,null,null,null,null,null,null,null,null,null,null,null,null,null,false,false,null,null,null,null,null,false]
[null,"Välj krav",null,null,null,null,null,null,null,null,"Välj typ av krav",null,null,null,null,null,null,null,null,null,null,null,null,null,null,null,false,false,null,null,null,null,null,false]
[1]
[null,null,null,null,null,null,null,null,null,null,null,"Max poäng för uppfyllda bör-krav",{"$f":"IF(UtvarderingsVal=\"Ut3\",\"\",\"Max prisavdrag för uppfyllda bör-krav\")","v":"Max prisavdrag för uppfyllda bör-krav"}]
[null,null,null,null,null,null,null,null,null,null,null,{"$f":"SUM(L98:L107)","v":0},{"$f":"SUM(M98:M107)","v":0},null,null,"Total erhållen poängsumma: ",{"$f":"SUMIF(P98:P107,\"Ja\",L98:L107)","v":0},null,null,null,null,{"$f":"IF(UtvarderingsVal=\"Ut3\",\"Totalt erhållet prisavdrag/prispåslag:\",\"Totalt erhållet prisavdrag:\")","v":"Totalt erhållet prisavdrag:"},null,{"$f":"SUMIF(P98:P107,\"Ja\",M98:M107)","v":0},null,null,{"$f":"IF(OR(AA96:AA107),\"Nej\",\"Ja\")","v":"Ja"},{"$f":"IF(OR(AB96:AB107),\"Nej\",\"Ja\")","v":"Ja"},{"$f":"IF(OR(AC96:AC107),\"Ja\",\"Nej\")","v":{"$error":"#VALUE!"}}]
[]
[]
[]
["Ut1","Alt. 1. Summan av viktade poäng för pris och uppfyllda bör-krav, högsta slutsumma vinner.",null,null,null,null,null,null,null,null,null,null,null,null,null,"Sammanställning för detta avropssvar",null,"Fyll i det gula fältet efter att samtliga avropssvar inkommit!","När det gula fältet är ifyllt sker en automatisk poängberäkning. Lägst pris tilldelas maxpoäng (100) medan övriga priser tilldelas poäng i förhållande till det lägsta priset. Poängsumman för uppfyllda bör-krav multipliceras med angiven viktning och en slutlig poängsumma för detta avropssvar kommer att framgå av fältet längst ned. Denna slutliga poängsumma ligger till grund för tilldelningsbeslutet."]
["Ut1","Priset jämförs mellan avropssvaren. Poäng för uppfyllda bör-krav jämförs med möjlig maxpoäng. "]
["Ut1","Tilldelningskriterier"]
["Ut1","Ange kriterievikt för pris respektive bör-krav i tabellen nedan",null,null,null,null,null,null,null,"Viktning %",null,null,null,null,null,null,"Viktning","Lägsta inkomna totalpris","Erhållen poäng för totalpris",null,"Viktade poäng per kriterium",null,"Slutlig poängsumma för detta avropssvar\n(utvärderas)"]
["Ut1","Pris",null,null,null,null,null,null,"Utvärdering av det totala sammanräknade priset: ",1,null,null,null,null,null,"Totalpris"]
["Ut1","Utvärderingskrav \n(bör-krav)",null,null,null,null,null,null,"Utvärdering av ställda bör-krav på avropade tjänster: ",null,null,null,null,null,null,{"$f":"X79","v":0},{"$f":"J118","v":1},null,{"$f":"IFERROR(R119/P119*100,0)","v":0},null,{"$f":"IFERROR(S119*Q119,\"\")","v":0},null,{"$f":"IFERROR(SUM(U119+U121),\"\")","v":""}]
["Ut1","Summa kriterievikt:",null,null,null,null,null,null,"(ska alltid summera till 100 %)",{"$f":"J119+J118","v":1},null,null,null,null,null,"Poängsumma för uppfyllda bör-krav"]
["Ut1",null,null,null,null,null,null,null,null,null,null,null,null,null,null,{"$f":"Q110","v":0},{"$f":"J119","v":0},null,null,null,{"$f":"IFERROR(((P121/L110)*100)*Q121,\"\")","v":""}]
["Ut1"]
["Ut1"]
[]
["Ut2","Alt. 2. Prisavdrag för uppfyllda bör-krav, lägsta utvärderingskostnad vinner. ",null,null,null,null,null,null,null,null,null,null,null,null,null,"Prisavdrag för uppfyllda bör-krav. ",null,"Summa utvärderingskostnad för detta avropssvar"]
["Ut2","Det erhållna prisavdraget för uppfyllda utvärderingskrav (bör-krav) dras ifrån det totala priset för avropade tjänster. Resultatet blir en utvärderingskostnad som ligger till grund för tilldelningsbeslutet.",null,null,null,null,null,null,null,null,null,null,null,null,null,{"$f":"X110","v":0},null,{"$f":"X79-P126","v":0}]
["Ut2",null,null,null,null,null,null,null,null,null,null,null,null,null,null,null,null,"OBS! Ej detsamma som kontraktssumma"]
["Ut2"]
["Ut2"]
[]
["Ut3","Alt. 3. Annan utvärderingsmodell (än de ovan föreslagna)"]
["Ut3"]
["Ut3","Avropande organisations beskrivning av den utvärderingsmodell som kommer att tillämpas (eller hänvisning till bilaga)"]
["Ut3"]
["Ut3"]
["Ut3"]
["Ut3"]
["Ut3"]
["Ut3"]
["Ut3"]
[]
[]
[null,"Steg 5 - Övriga uppgifter"]
[null,"Leverans/implementering"]
[null,"Ange när leverans/implementering ska vara klart"]
[null,"Implementering av myndigheten ska vara färdig 2018-07-30."]
[null,"(Branschpraxis för implementering av ny resebyråkund är ungf 3 månader efter tilldelningsbeslut)"]
[]
[]
[null,"Leveransvillkor (framgår av ramavtalets allmänna villkor)",null,null,null,null,null,null,null,"Relevant?"]
[null,"Ev. precisering av leveransvillkor (om tillåtet enligt ramavtalet)"]
[]
[]
[]
[]
[null,"Leveransadress (om annan än ovan)",null,null,null,null,null,null,null,"Relevant?"]
[null,"Ange ev leveransadress/er"]
[]
[]
[]
[]
[null,"Fakturaadress (om annan än ovan)"]
[null,"Ange ev fakturaadress/erna"]
[]
[]
[]
[]
[null,"Övrig information"]
[null,"Ange övriga specifika förutsättningar (tex ev budgetrestriktioner), förhållanden eller önskemål som kan vara viktiga för leverantören och som inte framgår på annan plats i dokumentet."]
[]
[]
[]
[]
[]
[]
[]
[]
[]
[]
[]
[null,"Bilagor från avropande organisation (kontraktshandlingar framgår av flik 3)",null,null,null,null,null,null,null,null,null,null,null,null,null,"Bilagor från leverantören"]
[null,"Specificera ev. bilagor som medföljer denna avropsförfrågan",null,null,null,null,null,null,null,null,null,null,null,null,null,"Specificera ev. bilagor som medföljer detta avropssvar"]
[]
[]
[]
[]
[]
[null,null,null,null,null,null,null,null,null,null,null,null,null,null,null,"Leverantören har lämnat begärda prisuppgifter som gäller för offererade produkter/tjänster enligt ställda krav samt accepterar i övrigt kraven i avropsförfrågan och är införstådd med att samtliga lämnade uppgifter i avropssvaret är bindande\n"]
[]
[null,"OBS! Spara inte blanketten i PDF-format. Då kan inte leverantörerna fylla i den. Lås blanketten med \"låsknappen\" nedan innan ni skickar blanketten till leverantörerna.",null,null,null,null,null,null,null,null,null,null,null,null,null,{"$f":"\"Leverantören intygar att avropssvaret är giltigt minst den tid som avropande organisation angett ovan. \"&CHAR(10)&\"(\"&TEXT(D27,\"ÅÅÅÅ-MM-DD\")&\")\"","v":"Leverantören intygar att avropssvaret är giltigt minst den tid som avropande organisation angett ovan. \n(2018-10-30)"}]
[null,"Låsning av avropsblanketten",null,null,null,null,null,null,null,null,null,null,null,null,null,"Ort, datum"]
[null,"Detta görs genom att klicka på knappen nedanför samt ange ett lösenord. Om det visat sig att man glömt fylla i någon uppgift så kan det vara bra att kunna låsa upp blanketten. Klicka då på samma knapp. Observera att lösenordet inte kan bestå av enbart siffror.",null,null,null,null,null,null,null,null,null,null,null,null,null,null,null,null,null,null,null,null,null,null,null,null,null,null,null,null,null,null,null,{"$f":"IF(P192=0,TRUE,FALSE)","v":true}]
[]
[null,null,null,null,null,null,null,null,null,null,null,null,null,null,null,"Namn, befattning (behörig företrädare för leverantören)"]
[]
[null,null,null,null,null,null,null,null,null,null,null,null,null,null,null,null,null,null,null,null,null,null,null,null,null,null,null,null,null,null,null,null,null,{"$f":"IF(P195=0,TRUE,FALSE)","v":true}]
[]
[null,null,null,null,null,null,null,null,null,null,null,null,null,null,null,null,null,null,null,{"$f":"IF(LarmStatus,\"Minst ett av de obligatoriska kraven är inte ifyllda eller besvarde med Nej\",\"\")","v":"Minst ett av de obligatoriska kraven är inte ifyllda eller besvarde med Nej"}]

{"sheet":"3 Avtalstecknande","index":2,"n_rows":37,"n_cols":4,"rows_kept":37,"cut":false,"hidden":false,"merged":[[5,1,5,3],[38,1,38,3],[39,1,39,3],[40,1,40,3],[7,1,7,3],[9,1,9,3],[11,1,11,3],[14,1,14,3],[15,1,15,3],[41,1,41,3],[22,1,22,3],[37,1,37,3],[17,1,17,3],[18,1,19,3]]}
[null,null,null,{"$f":"\"Avrop nr: \"&'2 Specifikation'!E15","v":"Avrop nr: xxxx"}]
[]
[]
[]
[null,"Kontrakt"]
[null,{"$f":"\"Detta kontrakt reglerar avrop från ramavtalsområde \"&'1 Försättssida'!A14&\", \"&'1 Försättssida'!A16","v":"Detta kontrakt reglerar avrop från ramavtalsområde Resebyråtjänster, 96-86-2014"}]
[null,"Kontraktets omfattning"]
[null,"Leveransens omfattning och villkor framgår av Kontraktet med tillhörande bilagor samt Ramavtalet. Om handlingarna innehåller motstridiga uppgifter ska handlingarna gälla i nedan nämnd ordning om inte omständigheterna uppenbarligen föranleder annat."]
[null,"1. Skriftliga ändringar och tillägg till Kontrakt"]
[null,"2. Kontrakt med bilagor, inkl. Allmänna villkor"]
[null,"3. Eventuellt kompletterande Avropsförfrågan"]
[null,"4. Avropsförfrågan med bilagor "]
[null,"5. Eventuella tillåtna kompletteringar av Avropssvar"]
[null,"6. Avropssvar med bilagor"]
[]
[null,"Innehåller leverantörens avropssvar uppgifter som inte efterfrågats i avropsblanketten är dessa uppgifter giltiga endast om en skriftlig överenskommelse träffas särskilt angående detta. Hänvisning till leverantörens egna allmänna villkor eller motsvarande är endast giltiga om en särskild överenskommelse avseende detta tecknas."]
[]
[null,"Särskilda kontraktsvillkor, säkerhetsskyddsavtal etc. (alternativt enl separat bilaga) "]
[]
[]
[]
[null,"Underskrift"]
[null,"Underskriften avser ett kontraktstecknande. Efter undertecknande av bägge parter utgör denna blankett tillsammans med ramavtalets villkor enligt ovan ett kontrakt mellan parterna.\n\nDetta kontrakt har upprättats i två exemplar varav parterna tagit var sitt."]
[]
[null,"Avropande organisation",null,"Leverantör"]
[null,{"$f":"'2 Specifikation'!B9","v":"Fiktivmyndigheten"},null,{"$f":"'2 Specifikation'!P9","v":0}]
[null,"Org.nr.",null,"Org.nr."]
[null,{"$f":"'2 Specifikation'!H9","v":0},null,{"$f":"'2 Specifikation'!V9","v":0}]
[]
[null,"Ort, datum",null,"Ort, datum"]
[]
[]
[null,"Namn, befattning \n(behörig företrädare för avropande organisation)",null,"Namn, befattning \n(behörig företrädare för leverantören)"]
[]
[]
[]
[null,"Eventuella bilagor till kontraktet"]

{"sheet":"Admin","index":3,"n_rows":67,"n_cols":21,"rows_kept":67,"cut":false,"hidden":true,"merged":[]}
[null,null,null,null,null,null,null,null,null,"ResVarTja",null,null,null,null,null,"Information/kommunikation","Kompetens ","Statistik och uppföljning ","Service","Bokning","Pris"]
[null,null,null,{"$f":"C5","v":"Delområde 1"},{"$f":"C6","v":"Delområde 2"},{"$f":"C7","v":"Delområde 3"},{"$f":"C8","v":"Delområde 4"},{"$f":"C9","v":"Delområde 5"},{"$f":"C10","v":"Delområde 6"},{"$f":"USRDelområde","v":"Delområde 1"},null,"Tbl krav",null,null,null,"TblKravInfo","TblKravKomp","TblKravStat","TblKravServ","TblKravBokn","TblKravPris"]
[null,null,"TblDelområde","Välj tjänst",{"$f":"$D$3","v":"Välj tjänst"},{"$f":"$D$3","v":"Välj tjänst"},{"$f":"$D$3","v":"Välj tjänst"},{"$f":"$D$3","v":"Välj tjänst"},{"$f":"$D$3","v":"Välj tjänst"},{"$f":"INDEX(D3:I3,MATCH(J$2,D$2:I$2,0))","v":"Välj tjänst"},null,"Välj krav",null,null,null,"Spårningssystem","Resekonsultens kompetens och erfarenhet","Webbaserat statistikverktyg","Tredjepartssytem","Leverans av färdhandlingar","Pris"]
[null,null,"Välj delområde","Flyg - ",null,null,null,null,null,{"$f":"INDEX(D4:I4,MATCH(J$2,D$2:I$2,0))","v":"Flyg - "},null,"Information/kommunikation",null,null,null,"Reseportal",null,"Statistik","Konsulttjänster","Följesedel"]
[null,null,"Delområde 1","Flyg - Inrikes",null,null,null,null,null,"Flyg - Inrikes",null,"Kompetens ",null,null,null,"Singel-sign-on",null,"Uppföljningsmöten","Klimatkompensation"]
[null,null,"Delområde 2","Flyg - Utrikes",null,null,null,null,null,"Flyg - Utrikes",null,"Statistik och uppföljning ",null,null,null,"24-timmarsservice"]
[null,null,"Delområde 3","Flyg - Årskort/Travelpass/Dest.kort - utfärdande",null,null,null,null,null,"Flyg - Årskort/Travelpass/Dest.kort - utfärdande",null,"Service",null,null,null,"Pass och visum"]
[null,null,"Delområde 4","Flyg - Årskort/Travelpass/Dest.kort - utfärdande inkl bokning",null,null,null,null,null,"Flyg - Årskort/Travelpass/Dest.kort - utfärdande inkl bokning",null,"Bokning",null,null,null,"Specifikt telefonnummer"]
[null,null,"Delområde 5","Tåg",null,null,null,null,null,"Tåg",null,"Pris",null,null,null,"Applikation till smartphone"]
[null,null,"Delområde 6","Tåg - Inrikes",null,null,null,null,null,"Tåg - Inrikes"]
[null,null,null,"Tåg - Utrikes",null,null,null,null,null,"Tåg - Utrikes"]
[null,null,null,"Tåg - Årskort/Dest.kort - utfärdande",null,null,null,null,null,"Tåg - Årskort/Dest.kort - utfärdande"]
[null,null,null,"Tåg - Årskort/Dest.kort - utfärdande inkl bokning",null,null,null,null,null,"Tåg - Årskort/Dest.kort - utfärdande inkl bokning"]
[null,null,null,"Hotell bokat i GDS",null,null,null,null,null,"Hotell bokat i GDS"]
[null,null,null,"Hotell bokat utanför GDS",null,null,null,null,null,"Hotell bokat utanför GDS"]
[null,null,null,"Hyrbil",null,null,null,null,null,"Hyrbil"]
[null,null,null,"Anslutning till/från tåg/flyg",null,null,null,null,null,"Anslutning till/från tåg/flyg"]
[null,null,null,"Båt",null,null,null,null,null,"Båt"]
[null,null,null,"Buss",null,null,null,null,null,"Buss"]
[null,null,null,"24-timmarsservice",null,null,null,null,null,"24-timmarsservice"]
[null,null,null,"Visum",null,null,null,null,null,"Visum"]
[null,null,null,"Ombokning",null,null,null,null,null,"Ombokning"]
[null,null,null,"Omskrivning",null,null,null,null,null,"Omskrivning"]
[null,null,null,"Kreditering",null,null,null,null,null,"Kreditering"]
[]
[null,null,null,"Optioner",null,null,null,null,null,"ResOpt"]
[null,null,null,"Välj tilläggstjänst",{"$f":"$D$27","v":"Välj tilläggstjänst"},{"$f":"$D$27","v":"Välj tilläggstjänst"},{"$f":"$D$27","v":"Välj tilläggstjänst"},{"$f":"$D$27","v":"Välj tilläggstjänst"},{"$f":"$D$27","v":"Välj tilläggstjänst"},{"$f":"INDEX(D27:I27,MATCH(J$2,D$2:I$2,0))","v":"Välj tilläggstjänst"}]
[null,null,null,"Implementering av självbokningssystem, fast pris",null,null,null,null,null,{"$f":"INDEX(D28:I28,MATCH(J$2,D$2:I$2,0))","v":"Implementering av självbokningssystem, fast pris"}]
[null,null,null,"Årlig underhåll/licenskostnad för självbokning",null,null,null,null,null,{"$f":"INDEX(D29:I29,MATCH(J$2,D$2:I$2,0))","v":"Årlig underhåll/licenskostnad för självbokning"}]
[null,null,null,"Ev. hanteringskostnad för upplägg av profiler",null,null,null,null,null,"Ev. hanteringskostnad för upplägg av profiler"]
[null,null,null,"Statistikkostnad, per rapport/årlig avgift",null,null,null,null,null,"Statistikkostnad, per rapport/årlig avgift"]
[null,null,null,"Informationsmöten",null,null,null,null,null,"Informationsmöten"]
[null,null,null,"Implementering av övriga system/projektledning",null,null,null,null,null,"Implementering av övriga system/projektledning"]
[null,null,null,"Avstämningsmöten/kundansvarig",null,null,null,null,null,"Avstämningsmöten/kundansvarig"]
[null,null,null,"Stöd inom Travel Management och/eller resesamordning",null,null,null,null,null,"Stöd inom Travel Management och/eller resesamordning"]
[null,null,null,"Utbildning per timme (självbokning)",null,null,null,null,null,"Utbildning per timme (självbokning)"]
[null,null,null,"Övriga tilläggstjänster (specificera)",null,null,null,null,null,{"$f":"INDEX(D37:I37,MATCH(J$2,D$2:I$2,0))","v":"Övriga tilläggstjänster (specificera)"}]
[]
[null,null,null,null,null,null,null,null,null,"Region"]
[null,null,null,"TblGrundTilldeln",null,null,null,"TblEnhet",null,"Multiregionalt"]
[null,null,null,"Välj grund för tilldelning…..",null,null,null,"Styck",null,"Blekinge län"]
[null,null,null,"Alt. 1. Lägsta pris (endast ska-krav och pris)",null,null,null,"Timmar",null,"Dalarnas län"]
[null,null,null,"Alt. 2. Ekonomiskt mest fördelaktiga (priset i relation till bör-krav)",null,null,null,"Månader",null,"Gotlands län"]
[null,null,null,null,null,null,null,"År",null,"Gävleborgs län"]
[null,null,null,"TblUtVrd",null,null,null,"Bilaga",null,"Hallands län"]
[null,null,null,"Välj utvärdering…..",null,null,null,null,null,"Jämtlands län"]
[null,null,null,"Alt. 1. Relativ viktning - summan av viktade poäng för pris och uppfyllda bör-krav",null,null,null,null,null,"Jönköpings län"]
[null,null,null,"Alt. 2. Mervärdesmodell - prisavdrag för uppfyllda bör-krav",null,null,null,null,null,"Kalmars län"]
[null,null,null,"Alt. 3. Annan utvärderingsmodell",null,null,null,null,null,"Kronobergs län"]
[null,null,null,null,null,null,null,null,null,"Norrbottens län"]
[null,null,null,null,null,null,null,null,null,"Skånes län"]
[null,null,null,null,null,null,null,null,null,"Stockholms län"]
[null,null,null,null,null,null,null,null,null,"Södermanlands län"]
[null,null,null,null,null,null,null,null,null,"Uppsala län"]
[null,null,null,null,null,null,null,null,null,"Värmlands län"]
[null,null,null,null,null,null,null,null,null,"Västerbottens län"]
[null,null,null,null,null,null,null,null,null,"Västernorrlands län"]
[null,null,null,null,null,null,null,null,null,"Västmanlands län"]
[null,null,null,null,null,null,null,null,null,"Västra Götalands län"]
[null,null,null,null,null,null,null,null,null,"Örebro län"]
[null,null,null,null,null,null,null,null,null,"Östergötlands lön"]
[]
[null,null,"TblLeverantörer"]
[null,null,"Juridiskt Namn","Förvaltningens avtalsnummer ","Organisations-nummer","Adress","Postnummer","Postadress","Telefon Växel","Telefon kundtjänst","Hemsida","Kontaktperson ","Telefon",null,"E-post kontaktperson","Befattning Kontaktperson","Fax","E-post Gruppbrevlåda"]
[]
[null,null,{"$f":"\"Välj \"&C64","v":"Välj Juridiskt Namn"},{"$f":"D64","v":"Förvaltningens avtalsnummer "},"Organisations-nummer","Adress","Postnummer","Postadress","Telefon Växel","Telefon kundtjänst","Hemsida","Kontaktperson ","Telefon",null,"E-post kontaktperson","Befattning Kontaktperson","Fax","E-post Gruppbrevlåda"]
[null,null,"Välj Juridiskt Namn 2","Förvaltningens avtalsnummer  2","Organisations-nummer 2","Adress 2","Postnummer 2","Postadress 2","Telefon Växel 2","Telefon kundtjänst 2","Hemsida 2","Kontaktperson  2","Telefon 2",null,"E-post kontaktperson 2","Befattning Kontaktperson 2","Fax 2","E-post Gruppbrevlåda 2"]

{"sheet":"SysAdmin","index":4,"n_rows":18,"n_cols":3,"rows_kept":18,"cut":false,"hidden":true,"merged":[]}
["LockStatus",false]
["UKey","Förvaltning21"]
["pkey","Förvaltning21"]
["Wkey","Förvaltning21","RGB"]
["YColor"," ","255, 255, 153"]
[null,null,"204, 255, 255"]
[null,null,"150, 150, 150"]
[null,null,"204, 255, 204"]
[null,null,"250, 191, 143"]
[]
[null,2,{"$f":"INDEX(C12:C14,B11)","v":"Avroppsblanketten är nu upplåst, klicka här för att låsa avropsblanketten."}]
[null,null,"Adminläge! Klicka här för att låsa vita celler."]
[null,null,"Avroppsblanketten är nu upplåst, klicka här för att låsa avropsblanketten."]
[null,null,"Avroppsblanketten är nu låst, klicka här för att låsa upp avropsblanketten."]
[]
[null,null,"Grund för tilldelning av kontrakt & Utvärderingsmodell"]
[null,null,{"$f":"VALUE(IF(ISNUMBER(SEARCH(\"2\",DpDwnTDV))=TRUE,\"2\",\"1\"))","v":1}]
[null,null,{"$f":"\"Ut\"&IF(ISNUMBER(SEARCH(\"1\",DpDwnUtvddrop))=TRUE,\"1\",IF(ISNUMBER(SEARCH(\"2\",DpDwnUtvddrop))=TRUE,\"2\",IF(ISNUMBER(SEARCH(\"3\",DpDwnUtvddrop))=TRUE,\"3\")))","v":"UtFALSKT"}]